[Event "*** Titled Tuesday 3|2 Blitz"]
[Site "Chess.com"]
[Date "2016.07.05"]
[Round "5"]
[White "Tonychess32"]
[Black "Alexander_Donchenko"]
[Result "0-1"]
[WhiteElo "2408"]
[BlackElo "2592"]
[TimeControl "180+2"]
[EndTime "12:01:13 PDT"]
[Termination "Alexander_Donchenko won on time"]

1. e4 {[%clk 0:03:01.9]} 1... c6 {[%clk 0:03:00.2]} 2. d4 {[%clk 0:03:02.3]}
2... d5 {[%clk 0:03:01.5]} 3. Nd2 {[%clk 0:03:03.3]} 3... dxe4 {[%clk
0:03:02.9]} 4. Nxe4 {[%clk 0:03:04.1]} 4... Bf5 {[%clk 0:03:04.6]} 5. Ng3 {[%clk
0:03:05]} 5... Bg6 {[%clk 0:03:06.3]} 6. h4 {[%clk 0:03:06.2]} 6... h6 {[%clk
0:03:08]} 7. h5 {[%clk 0:03:07.5]} 7... Bh7 {[%clk 0:03:08.9]} 8. Nf3 {[%clk
0:03:08.8]} 8... e6 {[%clk 0:03:10.5]} 9. Bd3 {[%clk 0:03:10]} 9... Bxd3 {[%clk
0:03:11.8]} 10. Qxd3 {[%clk 0:03:11.9]} 10... Nf6 {[%clk 0:03:13.3]} 11. Bd2
{[%clk 0:03:11.6]} 11... Nbd7 {[%clk 0:03:14.4]} 12. O-O-O {[%clk 0:03:12.2]}
12... Be7 {[%clk 0:03:16.1]} 13. Ne4 {[%clk 0:03:12.7]} 13... Nxe4 {[%clk
0:03:17.1]} 14. Qxe4 {[%clk 0:03:14.6]} 14... Nf6 {[%clk 0:03:18.6]} 15. Qe2
{[%clk 0:03:15.7]} 15... Qd5 {[%clk 0:03:19.1]} 16. Kb1 {[%clk 0:03:16.9]} 16...
Qe4 {[%clk 0:03:18.1]} 17. Be3 {[%clk 0:03:18.1]} 17... Nd5 {[%clk 0:03:14.4]}
18. Nd2 {[%clk 0:03:14.1]} 18... Qh7 {[%clk 0:03:09.4]} 19. Qf3 {[%clk
0:02:56.7]} 19... a5 {[%clk 0:03:08.2]} 20. Ne4 {[%clk 0:02:52.3]} 20... a4
{[%clk 0:03:06.9]} 21. a3 {[%clk 0:02:47.4]} 21... Bxa3 {[%clk 0:02:55.3]} 22.
Bf4 {[%clk 0:01:39.8]} 22... O-O {[%clk 0:02:43.9]} 23. Be5 {[%clk 0:01:06]}
23... Be7 {[%clk 0:02:37.4]} 24. Rd3 {[%clk 0:00:53.3]} 24... a3 {[%clk
0:02:31.3]} 25. bxa3 {[%clk 0:00:50]} 25... Rxa3 {[%clk 0:02:26.6]} 26. Rxa3
{[%clk 0:00:47]} 26... Bxa3 {[%clk 0:02:27.1]} 27. Rh3 {[%clk 0:00:35.1]} 27...
Be7 {[%clk 0:02:19.2]} 28. Rg3 {[%clk 0:00:34.6]} 28... f6 {[%clk 0:02:20.2]}
29. Bd6 {[%clk 0:00:24.3]} 29... Bxd6 {[%clk 0:02:01.2]} 30. Nxd6 {[%clk
0:00:25.4]} 30... Rd8 {[%clk 0:01:45.8]} 31. Ne4 {[%clk 0:00:19.2]} 31... Qf5
{[%clk 0:01:46]} 32. Qxf5 {[%clk 0:00:16.5]} 32... exf5 {[%clk 0:01:47.9]} 33.
Nc5 {[%clk 0:00:18]} 33... Re8 {[%clk 0:01:40.8]} 34. Kb2 {[%clk 0:00:16.7]}
34... b6 {[%clk 0:01:40.5]} 35. Nd3 {[%clk 0:00:14.5]} 35... Re2 {[%clk
0:01:37.6]} 36. Kb3 {[%clk 0:00:12.9]} 36... Kf7 {[%clk 0:01:30.5]} 37. c4
{[%clk 0:00:14.1]} 37... Nc7 {[%clk 0:01:31.8]} 38. Nb4 {[%clk 0:00:14.8]} 38...
c5 {[%clk 0:01:26.5]} 39. dxc5 {[%clk 0:00:14.9]} 39... bxc5 {[%clk 0:01:28.4]}
40. Nd3 {[%clk 0:00:15.5]} 40... Ne6 {[%clk 0:01:27.7]} 41. Kc3 {[%clk
0:00:10.5]} 41... f4 {[%clk 0:01:25]} 42. Rf3 {[%clk 0:00:09.7]} 42... Nd4
{[%clk 0:01:25.9]} 43. Nxf4 {[%clk 0:00:07.3]} 43... Re4 {[%clk 0:01:14.3]} 44.
Kd3 {[%clk 0:00:02.9]} 44... f5 {[%clk 0:01:15.8]} 45. Nd5 {[%clk 0:00:02.8]}
45... Nxf3 {[%clk 0:01:16.5]} 46. gxf3 {[%clk 0:00:03.6]} 46... Rd4+ {[%clk
0:01:16.1]} 47. Kc3 {[%clk 0:00:05.1]} 47... Rh4 {[%clk 0:01:17.5]} 48. Nb6
{[%clk 0:00:03.8]} 48... Ke6 {[%clk 0:01:16.8]} 0-1

[Event "*** Titled Tuesday 3|2 Blitz"]
[Site "Chess.com"]
[Date "2016.07.05"]
[Round "5"]
[White "Ginger_GM"]
[Black "David_Klein"]
[Result "0-1"]
[WhiteElo "2494"]
[BlackElo "2420"]
[TimeControl "180+2"]
[EndTime "12:01:22 PDT"]
[Termination "David_Klein won by resignation"]

1. e4 {[%clk 0:03:01.9]} 1... e5 {[%clk 0:02:59]} 2. f4 {[%clk 0:03:02.5]} 2...
d5 {[%clk 0:02:56.5]} 3. exd5 {[%clk 0:03:02.4]} 3... exf4 {[%clk 0:02:56.2]} 4.
Nf3 {[%clk 0:03:03.7]} 4... Nf6 {[%clk 0:02:57]} 5. Bc4 {[%clk 0:03:04.2]} 5...
Nxd5 {[%clk 0:02:57.3]} 6. Nc3 {[%clk 0:03:05.5]} 6... c6 {[%clk 0:02:55.5]} 7.
O-O {[%clk 0:03:01.7]} 7... Bd6 {[%clk 0:02:52.9]} 8. Bxd5 {[%clk 0:02:43.1]}
8... cxd5 {[%clk 0:02:52.5]} 9. d4 {[%clk 0:02:44.8]} 9... Be6 {[%clk
0:02:41.7]} 10. Ne5 {[%clk 0:02:39.3]} 10... Bxe5 {[%clk 0:02:30.7]} 11. dxe5
{[%clk 0:02:40.1]} 11... Nc6 {[%clk 0:02:28.8]} 12. Bxf4 {[%clk 0:02:40.6]}
12... Qb6+ {[%clk 0:02:16.6]} 13. Kh1 {[%clk 0:02:41.2]} 13... Qxb2 {[%clk
0:02:17.4]} 14. Nxd5 {[%clk 0:02:35.2]} 14... O-O-O {[%clk 0:01:54.9]} 15. c4
{[%clk 0:02:34.2]} 15... Qd4 {[%clk 0:01:56.4]} 16. Qxd4 {[%clk 0:02:31.6]}
16... Nxd4 {[%clk 0:01:57.3]} 17. Rfd1 {[%clk 0:02:23.4]} 17... Nc6 {[%clk
0:01:54.7]} 18. a4 {[%clk 0:02:17.7]} 18... h6 {[%clk 0:01:51.8]} 19. a5 {[%clk
0:02:18.1]} 19... Rd7 {[%clk 0:01:52.7]} 20. a6 {[%clk 0:02:18.6]} 20... b6
{[%clk 0:01:53.4]} 21. Rd2 {[%clk 0:01:50.5]} 21... Rhd8 {[%clk 0:01:11.3]} 22.
Rad1 {[%clk 0:01:50]} 22... g5 {[%clk 0:01:12.5]} 23. Bg3 {[%clk 0:01:48.9]}
23... h5 {[%clk 0:00:55.1]} 24. h4 {[%clk 0:01:48]} 24... g4 {[%clk 0:00:46.9]}
25. Bf4 {[%clk 0:01:49]} 25... Na5 {[%clk 0:00:27.9]} 26. Rc2 {[%clk 0:01:35.3]}
26... Kb8 {[%clk 0:00:28.7]} 27. Rb1 {[%clk 0:01:27.8]} 27... Rc8 {[%clk
0:00:16.9]} 28. Rbc1 {[%clk 0:01:15.2]} 28... Nxc4 {[%clk 0:00:15.3]} 29. Rxc4
{[%clk 0:01:15.2]} 29... Rxc4 {[%clk 0:00:15.9]} 30. Rxc4 {[%clk 0:01:16.1]}
30... Rxd5 {[%clk 0:00:16.7]} 31. Kh2 {[%clk 0:01:11.3]} 31... Ra5 {[%clk
0:00:15.9]} 32. Rd4 {[%clk 0:01:12.6]} 32... Kc7 {[%clk 0:00:16.6]} 33. Bg5
{[%clk 0:01:00.2]} 33... Rxa6 {[%clk 0:00:17.1]} 34. Rd8 {[%clk 0:01:01.4]}
34... Ra2 {[%clk 0:00:17.8]} 35. Bf6 {[%clk 0:00:59.5]} 35... Kc6 {[%clk
0:00:18.3]} 36. Be7 {[%clk 0:00:58]} 36... a5 {[%clk 0:00:18.3]} 37. Kg3 {[%clk
0:00:56.9]} 37... a4 {[%clk 0:00:19.4]} 38. Rh8 {[%clk 0:00:57.8]} 38... Bd5
{[%clk 0:00:19.8]} 39. Rh6+ {[%clk 0:00:58.9]} 39... Kb5 {[%clk 0:00:21.2]} 40.
Rxh5 {[%clk 0:01:00.2]} 40... Rxg2+ {[%clk 0:00:22.5]} 41. Kf4 {[%clk
0:01:01.6]} 41... Be6 {[%clk 0:00:24]} 42. Rg5 {[%clk 0:01:01.6]} 42... Rf2+
{[%clk 0:00:25.1]} 43. Ke3 {[%clk 0:01:02.6]} 43... Rf3+ {[%clk 0:00:26.3]} 44.
Ke4 {[%clk 0:01:03.8]} 44... Rh3 {[%clk 0:00:27.8]} 45. Rg8 {[%clk 0:01:02.9]}
45... a3 {[%clk 0:00:28.2]} 46. Ra8 {[%clk 0:01:03.1]} 46... a2 {[%clk
0:00:29.6]} 47. Kf4 {[%clk 0:01:03.1]} 47... Rh1 {[%clk 0:00:30.3]} 48. h5
{[%clk 0:01:01.5]} 48... a1=Q {[%clk 0:00:30.1]} 49. Rxa1 {[%clk 0:01:01.5]}
49... Rxa1 {[%clk 0:00:32]} 50. Bh4 {[%clk 0:00:58.3]} 50... Rh1 {[%clk
0:00:32.6]} 51. Kg5 {[%clk 0:00:59.3]} 51... Bc4 {[%clk 0:00:31.1]} 0-1

[Event "*** Titled Tuesday 3|2 Blitz"]
[Site "Chess.com"]
[Date "2016.07.05"]
[Round "5"]
[White "LaStreetCmaMaison"]
[Black "Hikaru"]
[Result "0-1"]
[WhiteElo "2434"]
[BlackElo "2997"]
[TimeControl "180+2"]
[EndTime "12:01:28 PDT"]
[Termination "Hikaru won by resignation"]

1. Nf3 {[%clk 0:03:01.9]} 1... Nf6 {[%clk 0:02:59.6]} 2. g3 {[%clk 0:03:03]}
2... d5 {[%clk 0:03:00.5]} 3. Bg2 {[%clk 0:03:03.4]} 3... e6 {[%clk 0:03:01.8]}
4. O-O {[%clk 0:03:04.7]} 4... Be7 {[%clk 0:03:03.7]} 5. d3 {[%clk 0:03:06]}
5... b6 {[%clk 0:03:04.7]} 6. Nbd2 {[%clk 0:03:05.3]} 6... Bb7 {[%clk
0:03:05.9]} 7. e4 {[%clk 0:03:06.1]} 7... c5 {[%clk 0:03:07.5]} 8. e5 {[%clk
0:03:07.1]} 8... Nfd7 {[%clk 0:03:08.1]} 9. Re1 {[%clk 0:03:08.4]} 9... g5
{[%clk 0:03:05.5]} 10. h3 {[%clk 0:02:52]} 10... h5 {[%clk 0:03:06.4]} 11. Nf1
{[%clk 0:02:49.4]} 11... Nc6 {[%clk 0:03:07]} 12. c3 {[%clk 0:02:50.7]} 12... g4
{[%clk 0:02:59]} 13. hxg4 {[%clk 0:02:51.8]} 13... hxg4 {[%clk 0:03:00.9]} 14.
N3h2 {[%clk 0:02:53.3]} 14... Ndxe5 {[%clk 0:03:00.9]} 15. d4 {[%clk 0:02:41.4]}
15... Nf3+ {[%clk 0:02:55.2]} 16. Nxf3 {[%clk 0:02:41.9]} 16... gxf3 {[%clk
0:02:57.1]} 17. Qxf3 {[%clk 0:02:43.3]} 17... cxd4 {[%clk 0:02:57.3]} 18. cxd4
{[%clk 0:02:45.2]} 18... Nxd4 {[%clk 0:02:37]} 19. Qd3 {[%clk 0:02:42.8]} 19...
Nc6 {[%clk 0:02:35]} 20. Bf4 {[%clk 0:02:35.3]} 20... Kf8 {[%clk 0:02:16.5]} 21.
Rac1 {[%clk 0:02:33.4]} 21... Bf6 {[%clk 0:02:13.2]} 22. Qa3+ {[%clk 0:02:16.4]}
22... Kg8 {[%clk 0:02:11.9]} 23. Ne3 {[%clk 0:02:12.2]} 23... Rc8 {[%clk
0:02:10.6]} 24. Rcd1 {[%clk 0:01:44.5]} 24... Qf8 {[%clk 0:01:54.6]} 25. Bd6
{[%clk 0:01:37.2]} 25... Qg7 {[%clk 0:01:50.7]} 26. b4 {[%clk 0:01:22.6]} 26...
a6 {[%clk 0:01:51.4]} 27. Qb3 {[%clk 0:01:15.6]} 27... Nd4 {[%clk 0:01:51.2]}
28. Qb1 {[%clk 0:01:15.5]} 28... Nb5 {[%clk 0:01:47.5]} 29. Bf4 {[%clk
0:00:46.7]} 29... Nc3 {[%clk 0:01:48.2]} 30. Qd3 {[%clk 0:00:48.3]} 30... Nxd1
{[%clk 0:01:48.2]} 31. Qxd1 {[%clk 0:00:50.2]} 31... Bg5 {[%clk 0:01:34.5]} 32.
Bd6 {[%clk 0:00:46]} 32... Rd8 {[%clk 0:01:30.1]} 33. Bc7 {[%clk 0:00:46.3]}
33... Rd7 {[%clk 0:01:31.4]} 34. Bxb6 {[%clk 0:00:47.3]} 34... Bxe3 {[%clk
0:01:04.1]} 35. Bxe3 {[%clk 0:00:43.4]} 35... e5 {[%clk 0:01:05.4]} 36. Qa4
{[%clk 0:00:41.6]} 36... f6 {[%clk 0:01:06.7]} 37. Rd1 {[%clk 0:00:30.6]} 37...
Qf7 {[%clk 0:01:06.5]} 38. Bc5 {[%clk 0:00:26.9]} 38... d4 {[%clk 0:01:04.4]}
39. Bxb7 {[%clk 0:00:24.9]} 39... Rxb7 {[%clk 0:01:06.3]} 40. Qc6 {[%clk
0:00:26.3]} 40... Rd7 {[%clk 0:01:02.2]} 41. Qf3 {[%clk 0:00:13.1]} 41... Qd5
{[%clk 0:00:58.3]} 42. Qg4+ {[%clk 0:00:13.9]} 42... Kf7 {[%clk 0:00:59.3]} 43.
f3 {[%clk 0:00:13]} 43... Qe6 {[%clk 0:00:57.2]} 44. Qe4 {[%clk 0:00:13.3]}
44... Qxa2 {[%clk 0:00:57.6]} 45. Kf1 {[%clk 0:00:04.9]} 0-1

[Event "*** Titled Tuesday 3|2 Blitz"]
[Site "Chess.com"]
[Date "2016.07.05"]
[Round "5"]
[White "daro94"]
[Black "Mornar1951"]
[Result "1-0"]
[WhiteElo "2637"]
[BlackElo "2503"]
[TimeControl "180+2"]
[EndTime "12:01:34 PDT"]
[Termination "daro94 won by checkmate"]

1. d4 {[%clk 0:02:45.9]} 1... d5 {[%clk 0:03:00.4]} 2. c4 {[%clk 0:02:46.8]}
2... e6 {[%clk 0:03:02]} 3. Nf3 {[%clk 0:02:47.7]} 3... Nf6 {[%clk 0:03:02.3]}
4. e3 {[%clk 0:02:49.4]} 4... Be7 {[%clk 0:03:02.6]} 5. b3 {[%clk 0:02:50.8]}
5... O-O {[%clk 0:03:02.8]} 6. Bb2 {[%clk 0:02:52.2]} 6... c5 {[%clk 0:03:04.1]}
7. cxd5 {[%clk 0:02:42.8]} 7... Nxd5 {[%clk 0:02:59.9]} 8. dxc5 {[%clk
0:02:14.3]} 8... Bxc5 {[%clk 0:02:57.7]} 9. Bc4 {[%clk 0:02:10.1]} 9... Bb4+
{[%clk 0:02:49.1]} 10. Nbd2 {[%clk 0:02:05.3]} 10... b6 {[%clk 0:02:40.5]} 11.
O-O {[%clk 0:02:03.5]} 11... Bb7 {[%clk 0:02:41.6]} 12. Rc1 {[%clk 0:01:41]}
12... Nd7 {[%clk 0:02:37]} 13. Qe2 {[%clk 0:01:41.6]} 13... Qe7 {[%clk
0:02:29.4]} 14. Ba6 {[%clk 0:01:30.5]} 14... Bxa6 {[%clk 0:02:28]} 15. Qxa6
{[%clk 0:01:32.4]} 15... Nc5 {[%clk 0:02:28]} 16. Qe2 {[%clk 0:01:33.8]} 16...
Bxd2 {[%clk 0:02:25]} 17. Nxd2 {[%clk 0:01:33.6]} 17... Nb4 {[%clk 0:02:21.1]}
18. Rc4 {[%clk 0:01:21.4]} 18... a5 {[%clk 0:02:13.5]} 19. Ne4 {[%clk
0:00:50.2]} 19... Nxe4 {[%clk 0:02:06.7]} 20. Rxe4 {[%clk 0:00:52.1]} 20... Rac8
{[%clk 0:02:01.3]} 21. Rc4 {[%clk 0:00:46.6]} 21... Rxc4 {[%clk 0:01:59.1]} 22.
Qxc4 {[%clk 0:00:48.5]} 22... Rd8 {[%clk 0:01:41]} 23. a3 {[%clk 0:00:47.1]}
23... Nd3 {[%clk 0:01:37.8]} 24. Bd4 {[%clk 0:00:44.9]} 24... Nc5 {[%clk
0:01:35.9]} 25. b4 {[%clk 0:00:43.4]} 25... axb4 {[%clk 0:01:34.6]} 26. axb4
{[%clk 0:00:45.3]} 26... Nd7 {[%clk 0:01:33.3]} 27. Qc7 {[%clk 0:00:44.8]} 27...
Qe8 {[%clk 0:01:05.2]} 28. Rc1 {[%clk 0:00:45.8]} 28... Rb8 {[%clk 0:01:04]} 29.
Rc6 {[%clk 0:00:30.5]} 29... e5 {[%clk 0:01:05.2]} 30. Bc3 {[%clk 0:00:19.4]}
30... f6 {[%clk 0:00:49.5]} 31. h3 {[%clk 0:00:20.2]} 31... Qd8 {[%clk
0:00:47.8]} 32. Qd6 {[%clk 0:00:19.7]} 32... Nf8 {[%clk 0:00:48.7]} 33. b5
{[%clk 0:00:18.9]} 33... Qxd6 {[%clk 0:00:47.8]} 34. Rxd6 {[%clk 0:00:20.8]}
34... Kf7 {[%clk 0:00:48.8]} 35. Bb4 {[%clk 0:00:22.3]} 35... Rb7 {[%clk
0:00:48.7]} 36. g4 {[%clk 0:00:21.8]} 36... Ne6 {[%clk 0:00:46]} 37. Kg2 {[%clk
0:00:23.1]} 37... Nc5 {[%clk 0:00:39.4]} 38. Rc6 {[%clk 0:00:17.7]} 38... Ne6
{[%clk 0:00:36.9]} 39. h4 {[%clk 0:00:18.5]} 39... Nc7 {[%clk 0:00:37.1]} 40.
Kf3 {[%clk 0:00:12.7]} 40... Nxb5 {[%clk 0:00:37.4]} 41. Ke4 {[%clk 0:00:14.2]}
41... Na7 {[%clk 0:00:38.3]} 42. Rc1 {[%clk 0:00:13.5]} 42... Ke6 {[%clk
0:00:37.5]} 43. f4 {[%clk 0:00:14.5]} 43... exf4 {[%clk 0:00:38.1]} 44. exf4
{[%clk 0:00:16.4]} 44... Nb5 {[%clk 0:00:38.2]} 45. f5+ {[%clk 0:00:15.9]} 45...
Kf7 {[%clk 0:00:39.5]} 46. Rc8 {[%clk 0:00:16.5]} 46... Rd7 {[%clk 0:00:38.8]}
47. Rf8# {[%clk 0:00:17.4]} 1-0

[Event "*** Titled Tuesday 3|2 Blitz"]
[Site "Chess.com"]
[Date "2016.07.05"]
[Round "5"]
[White "Ksenia_Legenko"]
[Black "eltenedor"]
[Result "0-1"]
[WhiteElo "2049"]
[BlackElo "2022"]
[TimeControl "180+2"]
[EndTime "12:02:14 PDT"]
[Termination "eltenedor won by resignation"]

1. d4 {[%clk 0:03:01.9]} 1... d5 {[%clk 0:02:59.7]} 2. c4 {[%clk 0:03:02.7]}
2... dxc4 {[%clk 0:03:01]} 3. Nf3 {[%clk 0:03:02.7]} 3... Nf6 {[%clk 0:03:01]}
4. g3 {[%clk 0:03:03.5]} 4... Nc6 {[%clk 0:02:56]} 5. Bg2 {[%clk 0:03:04.5]}
5... e5 {[%clk 0:02:55.3]} 6. e3 {[%clk 0:02:28.8]} 6... exd4 {[%clk 0:02:30.3]}
7. Nxd4 {[%clk 0:02:27.4]} 7... Nxd4 {[%clk 0:02:25.2]} 8. exd4 {[%clk
0:02:28.3]} 8... Bb4+ {[%clk 0:02:22.8]} 9. Nc3 {[%clk 0:02:22.5]} 9... O-O
{[%clk 0:01:40.6]} 10. O-O {[%clk 0:02:23.1]} 10... Qd6 {[%clk 0:01:25.4]} 11.
Bf4 {[%clk 0:02:19.9]} 11... Qb6 {[%clk 0:01:21]} 12. Be5 {[%clk 0:01:39.1]}
12... Bg4 {[%clk 0:01:15.7]} 13. Qc2 {[%clk 0:01:29.5]} 13... c5 {[%clk
0:01:05]} 14. Na4 {[%clk 0:01:08.9]} 14... Qb5 {[%clk 0:00:57]} 15. a3 {[%clk
0:01:00.9]} 15... Ba5 {[%clk 0:00:52.7]} 16. Nxc5 {[%clk 0:01:01.3]} 16... Nd7
{[%clk 0:00:43.7]} 17. a4 {[%clk 0:00:56.2]} 17... Qb4 {[%clk 0:00:24.2]} 18.
Bd6 {[%clk 0:00:55.8]} 18... Nxc5 {[%clk 0:00:17]} 19. Bxc5 {[%clk 0:00:56.2]}
19... Qb3 {[%clk 0:00:17.1]} 20. Qxb3 {[%clk 0:00:55.7]} 20... cxb3 {[%clk
0:00:19]} 21. Bxf8 {[%clk 0:00:52.9]} 21... Kxf8 {[%clk 0:00:20.9]} 22. Bxb7
{[%clk 0:00:50.6]} 22... Rb8 {[%clk 0:00:22.3]} 23. Bg2 {[%clk 0:00:50]} 23...
Bf5 {[%clk 0:00:22.3]} 24. Rfe1 {[%clk 0:00:49]} 24... Bxe1 {[%clk 0:00:21.8]}
25. Rxe1 {[%clk 0:00:49.7]} 25... Rb4 {[%clk 0:00:22.7]} 26. h3 {[%clk
0:00:42.5]} 26... Rxd4 {[%clk 0:00:21]} 27. g4 {[%clk 0:00:35.4]} 27... Bd7
{[%clk 0:00:20.8]} 28. a5 {[%clk 0:00:26.7]} 28... Rd2 {[%clk 0:00:21.9]} 29.
Bd5 {[%clk 0:00:21.1]} 29... Rxb2 {[%clk 0:00:21.3]} 30. Re3 {[%clk 0:00:21]}
30... Ba4 {[%clk 0:00:21.7]} 31. a6 {[%clk 0:00:15.4]} 31... Rb1+ {[%clk
0:00:22]} 32. Kh2 {[%clk 0:00:16.2]} 32... b2 {[%clk 0:00:23]} 33. Ra3 {[%clk
0:00:14.2]} 33... Rh1+ {[%clk 0:00:21.6]} 34. Bxh1 {[%clk 0:00:14]} 34... b1=Q
{[%clk 0:00:22.5]} 35. Rxa4 {[%clk 0:00:15.1]} 35... Qb8+ {[%clk 0:00:23]} 36.
Kg1 {[%clk 0:00:14]} 36... Qb1+ {[%clk 0:00:21.8]} 37. Kh2 {[%clk 0:00:14.7]}
37... Qb8+ {[%clk 0:00:22]} 38. Kg1 {[%clk 0:00:15.3]} 38... Qc7 {[%clk
0:00:21.9]} 39. Bb7 {[%clk 0:00:11.1]} 39... Qc1+ {[%clk 0:00:21.8]} 40. Kh2
{[%clk 0:00:11.4]} 40... Qc2 {[%clk 0:00:19.1]} 41. Rf4 {[%clk 0:00:10.7]} 41...
Qc7 {[%clk 0:00:18.4]} 42. g5 {[%clk 0:00:07.4]} 42... Qxf4+ {[%clk 0:00:18.1]}
0-1

[Event "*** Titled Tuesday 3|2 Blitz"]
[Site "Chess.com"]
[Date "2016.07.05"]
[Round "5"]
[White "FearlessKing64"]
[Black "oggy1984"]
[Result "1-0"]
[WhiteElo "2124"]
[BlackElo "2288"]
[TimeControl "180+2"]
[EndTime "12:02:20 PDT"]
[Termination "FearlessKing64 won by resignation"]

1. e4 {[%clk 0:03:01.9]} 1... c6 {[%clk 0:03:00.2]} 2. d4 {[%clk 0:03:02.1]}
2... d5 {[%clk 0:03:00.9]} 3. e5 {[%clk 0:03:00.4]} 3... c5 {[%clk 0:03:01.2]}
4. c3 {[%clk 0:02:53.1]} 4... Nc6 {[%clk 0:03:01.4]} 5. f4 {[%clk 0:02:48]} 5...
Bf5 {[%clk 0:03:01.3]} 6. Bd3 {[%clk 0:02:43.8]} 6... Bxd3 {[%clk 0:02:58.5]} 7.
Qxd3 {[%clk 0:02:45.7]} 7... e6 {[%clk 0:02:59.6]} 8. a3 {[%clk 0:02:45.3]} 8...
Qb6 {[%clk 0:02:56.6]} 9. Nf3 {[%clk 0:02:44.3]} 9... Nh6 {[%clk 0:02:54.7]} 10.
dxc5 {[%clk 0:02:01.3]} 10... Bxc5 {[%clk 0:02:54.2]} 11. b4 {[%clk 0:01:50.6]}
11... Bf2+ {[%clk 0:02:17.8]} 12. Ke2 {[%clk 0:01:51.3]} 12... Ng4 {[%clk
0:02:16.2]} 13. Rf1 {[%clk 0:01:42.2]} 13... O-O-O {[%clk 0:01:50.7]} 14. h3
{[%clk 0:01:40.4]} 14... h5 {[%clk 0:01:37.4]} 15. hxg4 {[%clk 0:01:38.6]} 15...
hxg4 {[%clk 0:01:38.3]} 16. Rxf2 {[%clk 0:01:36.5]} 16... gxf3+ {[%clk
0:01:39.3]} 17. gxf3 {[%clk 0:01:21.6]} 17... d4 {[%clk 0:01:33]} 18. c4 {[%clk
0:01:19.8]} 18... Rh1 {[%clk 0:01:23.5]} 19. Bb2 {[%clk 0:01:19.6]} 19... g5
{[%clk 0:01:03.6]} 20. Nd2 {[%clk 0:01:04.9]} 20... Rxa1 {[%clk 0:01:02.3]} 21.
Bxa1 {[%clk 0:01:06.5]} 21... gxf4 {[%clk 0:01:03.6]} 22. c5 {[%clk 0:01:06.5]}
22... Qc7 {[%clk 0:01:02.1]} 23. Nc4 {[%clk 0:00:59.9]} 23... Nxe5 {[%clk
0:01:01.2]} 24. Nxe5 {[%clk 0:00:56.6]} 24... Qxe5+ {[%clk 0:01:01]} 25. Kd1
{[%clk 0:00:37.8]} 25... Qe3 {[%clk 0:00:52.9]} 26. Rd2 {[%clk 0:00:31.8]} 26...
Qg1+ {[%clk 0:00:49.6]} 27. Kc2 {[%clk 0:00:18.8]} 27... Qxa1 {[%clk 0:00:50.6]}
28. c6 {[%clk 0:00:11]} 28... Qa2+ {[%clk 0:00:43.3]} 29. Kd1 {[%clk 0:00:11.8]}
29... Qd5 {[%clk 0:00:41.4]} 30. cxb7+ {[%clk 0:00:12.4]} 30... Kxb7 {[%clk
0:00:42]} 31. Rc2 {[%clk 0:00:10.2]} 31... e5 {[%clk 0:00:34.3]} 32. Rc5 {[%clk
0:00:08.2]} 32... Qd6 {[%clk 0:00:32.3]} 33. Qb5+ {[%clk 0:00:03.4]} 33... Qb6
{[%clk 0:00:25.7]} 34. Qc4 {[%clk 0:00:03.4]} 34... Rd7 {[%clk 0:00:18]} 35. Rb5
{[%clk 0:00:04.3]} 35... d3 {[%clk 0:00:17.6]} 36. Rxb6+ {[%clk 0:00:05.6]}
36... axb6 {[%clk 0:00:18.7]} 37. Qe4+ {[%clk 0:00:06.5]} 37... Kc7 {[%clk
0:00:17.9]} 38. Qxe5+ {[%clk 0:00:08.1]} 38... Kb7 {[%clk 0:00:17.5]} 39. Kd2
{[%clk 0:00:08.9]} 39... Ka6 {[%clk 0:00:14.4]} 40. Qxf4 {[%clk 0:00:10]} 40...
Kb5 {[%clk 0:00:14.8]} 41. Qf5+ {[%clk 0:00:09.8]} 41... Kc6 {[%clk 0:00:15.7]}
42. b5+ {[%clk 0:00:09.6]} 42... Kc7 {[%clk 0:00:15.8]} 43. Qe5+ {[%clk
0:00:11.1]} 43... Kc8 {[%clk 0:00:16.1]} 44. a4 {[%clk 0:00:12.5]} 44... Kb7
{[%clk 0:00:16.2]} 45. f4 {[%clk 0:00:13.9]} 45... Kc8 {[%clk 0:00:15.9]} 46. f5
{[%clk 0:00:15.2]} 46... Kb7 {[%clk 0:00:16.8]} 47. f6 {[%clk 0:00:16.6]} 47...
Kc8 {[%clk 0:00:17.8]} 48. Qe8+ {[%clk 0:00:17.4]} 48... Kc7 {[%clk 0:00:19]}
49. Qe5+ {[%clk 0:00:18.4]} 49... Kc8 {[%clk 0:00:19.9]} 50. Qe4 {[%clk
0:00:19.6]} 50... Kc7 {[%clk 0:00:20.7]} 51. Qc6+ {[%clk 0:00:20.7]} 51... Kd8
{[%clk 0:00:20.2]} 52. Qxb6+ {[%clk 0:00:22.2]} 1-0